bitfinex-derivatives/quotes_SOLF0:USTF0_20250816
["timestamp","ask_amount","ask_price","bid_price","bid_amount"]
[1755326288271,2.93,186.3,186.24,5.365]
[1755326288480,2.93,186.3,186.23,3.04]
[1755326288665,2.93,186.3,186.26,3.04]
[1755326288870,113.50597289,186.38,186.28,2.88552225]
[1755326289071,2.93,186.34,186.28,2.88552225]
[1755326289273,2.93,186.34,186.33,3.04]
[1755326289481,113.50597289,186.38,186.31,3.04]
[1755326289666,4.38524333,186.37,186.33,3.04]
[1755326289871,2.93,186.43,186.34,3.04]
[1755326290075,4.48776367,186.49,186.37,3.04]
[1755326290279,2.93,186.46,186.4,3.04]
[1755326290479,2.93,186.49,186.43,3.04]
[1755326290778,2.93,186.54,186.46,3.04]
[1755326290979,2.93,186.53,186.51,3.04]
[1755326291672,2.93,186.52,186.51,3.04]
[1755326292067,2.93,186.52,186.51,8.3973]
[1755326292278,5.81552225,186.58,186.48,3.04]
[1755326292474,2.93,186.56,186.46,3.04]
[1755326292674,2.93,186.54,186.46,3.04]
[1755326293272,4.3870187,186.53,186.46,3.04]
[1755326293478,2.93,186.51,186.44,137.22]
[1755326293779,2.93,186.51,186.44,140.26]
[1755326294080,2.93,186.51,186.44,3.04]
[1755326294469,4.38650209,186.5,186.44,3.04]
[1755326294679,2.93,186.53,186.44,3.04]
[1755326294876,2.93,186.51,186.42,3.04]
[1755326295075,2.93,186.49,186.42,3.04]
[1755326295982,2.93,186.47,186.37,3.04]
[1755326296181,4.38669783,186.46,186.37,3.04]
[1755326296375,2.93,186.44,186.37,3.04]
[1755326296581,2.93,186.42,186.35,3.04]
[1755326296883,2.93,186.4,186.35,3.04]
[1755326297277,2.93,186.4,186.32,3.04]
[1755326297473,2.93,186.38,186.32,3.04]
[1755326297883,2.93,186.38,186.33,5.3624]
[1755326298084,2.93,186.43,186.34,3.04]
[1755326298280,2.93,186.41,186.34,3.04]
[1755326298479,4.56462968,186.45,186.34,3.04]
[1755326298675,3.09,186.38,186.28,137.36]
[1755326298879,3.09,186.38,186.36,3.1]
[1755326299181,9.03842294,186.45,186.28,137.36]
[1755326299182,3.09,186.44,186.35,4.56462968]
[1755326299379,3.09,186.44,186.41,5.3602]
[1755326299586,3.09,186.44,186.42,3.1]
[1755326299784,3.09,186.44,186.43,3.1]
[1755326300286,3.09,186.44,186.37,3.1]
[1755326300482,3.09,186.44,186.37,8.4611]
[1755326300688,3.09,186.44,186.37,3.1]
[1755326301182,3.09,186.42,186.37,3.1]
[1755326301884,3.09,186.46,186.37,3.1]
[1755326302080,3.09,186.44,186.37,3.1]
[1755326303486,3.09,186.49,186.37,3.1]
[1755326303783,3.09,186.47,186.37,3.1]
[1755326303984,3.09,186.47,186.37,4.56462968]
[1755326304186,3.09,186.47,186.38,3.1]
[1755326304788,3.09,186.47,186.43,5.3595]
[1755326305683,3.09,186.52,186.43,8.4595]
[1755326305886,3.09,186.5,186.43,8.4595]
[1755326306080,3.09,186.48,186.39,5.3605]
[1755326306380,3.09,186.46,186.38,3.1]
[1755326306587,4.56462968,186.53,186.38,3.1]
[1755326306588,3.09,186.44,186.38,3.1]
[1755326306787,3.09,186.44,186.42,3.1]
[1755326307387,3.09,186.49,186.37,3.1]
[1755326308892,3.09,186.47,186.39,5.3605]
[1755326309191,3.09,186.45,186.37,3.1]
[1755326309380,3.09,186.45,186.38,3.1]
[1755326309692,3.09,186.45,186.4,3.1]
[1755326309886,3.09,186.45,186.38,3.1]
[1755326310388,3.09,186.49,186.39,3.1]
[1755326310691,3.09,186.49,186.45,5.359]
[1755326311292,3.09,186.49,186.43,3.1]
[1755326311590,3.09,186.47,186.39,3.1]
[1755326311784,3.09,186.47,186.42,3.1]
[1755326311988,3.09,186.47,186.43,3.1]
[1755326312392,4.47379326,186.52,186.43,3.1]
[1755326312588,3.09,186.45,186.43,3.1]
[1755326312988,4.47379326,186.52,186.43,3.1]
[1755326312989,3.09,186.44,186.43,3.1]
[1755326314090,7.56379326,186.51,186.41,8.4601]
[1755326314294,3.09,186.49,186.41,3.1]
[1755326314495,4.39251215,186.48,186.42,5.3598]
[1755326314692,3.09,186.46,186.42,8.4598]
[1755326314895,3.09,186.5,186.42,3.1]
[1755326315091,3.09,186.48,186.42,3.1]
[1755326315398,3.09,186.48,186.44,5.3591]
[1755326315592,3.09,186.48,186.42,3.1]
[1755326316095,3.09,186.48,186.42,8.4597]
[1755326316795,3.09,186.48,186.43,5.3596]
[1755326316996,3.09,186.48,186.44,3.1]
[1755326317299,3.09,186.48,186.44,8.4593]
[1755326317600,3.09,186.51,186.44,3.1]
[1755326317796,3.09,186.49,186.44,3.1]
[1755326317997,3.09,186.52,186.44,3.1]
[1755326318193,4.39570433,186.51,186.44,3.1]
[1755326318393,3.09,186.48,186.46,3.1]
[1755326318606,4.39570433,186.5,186.32,141.62462968]
[1755326318607,3.09,186.5,186.41,3.1]
[1755326319695,4.47379326,186.56,186.47,5.3584]
[1755326319901,4.47379326,186.53,186.41,3.1]
[1755326320105,7.56379326,186.51,186.41,3.1]
[1755326320301,3.09,186.49,186.41,8.4601]
[1755326320501,4.39589255,186.48,186.41,8.4601]
[1755326320699,3.09,186.47,186.35,3.1]
[1755326320901,3.09,186.47,186.42,5.3598]
[1755326321098,3.09,186.47,186.35,3.1]
[1755326321501,3.09,186.47,186.36,3.1]
[1755326321803,3.09,186.47,186.38,3.1]
[1755326321995,3.09,186.47,186.43,3.1]
[1755326322305,4.47379326,186.52,186.43,3.1]
[1755326322603,3.09,186.45,186.44,3.1]
[1755326323005,3.09,186.45,186.42,5.3596]
[1755326323202,3.09,186.45,186.43,3.1]
[1755326323402,3.09,186.44,186.43,3.1]
[1755326323594,3.09,186.44,186.43,8.4596]
[1755326324907,3.09,186.46,186.43,8.4596]
[1755326325108,3.09,186.45,186.44,3.1]
[1755326325511,3.09,186.45,186.43,5.3596]
[1755326325704,3.09,186.44,186.43,8.4596]
[1755326325904,9.03842294,186.52,186.34,235.46]
[1755326326101,3.09,186.49,186.35,3.1]
[1755326326307,3.09,186.47,186.35,3.1]
[1755326326507,3.09,186.45,186.36,3.1]
[1755326328211,3.09,186.45,186.41,5.3601]
[1755326328412,3.09,186.45,186.41,8.4601]
[1755326329614,3.09,186.45,186.41,5.3601]
[1755326329913,3.09,186.45,186.4,8.3303]
[1755326330513,3.09,186.45,186.36,99.0]
[1755326330714,3.09,186.45,186.41,2.97]
[1755326330916,3.09,186.45,186.35,2.97]
[1755326331114,3.09,186.45,186.4,5.3603]
[1755326331508,3.09,186.45,186.4,8.3303]
[1755326331704,3.09,186.45,186.41,5.3601]
[1755326332114,4.4016337,186.44,186.41,8.3301]
[1755326332413,2.85,186.42,186.41,8.3301]
[1755326332714,2.85,186.44,186.43,5.3596]
[1755326333013,2.85,186.44,186.43,8.3296]
[1755326333214,7.25644143,186.44,186.43,8.3296]
[1755326333417,2.85,186.43,186.42,8.3298]
[1755326336217,2.85,186.46,186.42,2.97]
[1755326336417,7.26115596,186.45,186.42,2.97]
[1755326336612,2.85,186.45,186.44,5.3593]
[1755326336916,7.26097533,186.45,186.44,8.3293]
[1755326337314,7.26097533,186.45,186.44,5.3593]
[1755326337818,7.26097533,186.45,186.43,5.3595]
[1755326338020,4.41097533,186.44,186.41,2.97]
[1755326338314,4.41097533,186.43,186.37,99.0]
[1755326338519,2.85,186.41,186.4,8.3302]
[1755326338720,7.26097533,186.41,186.4,8.3302]
[1755326340118,4.41097533,186.41,186.4,8.3302]
[1755326340314,2.85,186.44,186.43,2.97]
[1755326340514,7.26454715,186.44,186.43,2.97]
[1755326341222,2.85,186.43,186.36,2.97]
[1755326341422,7.26454715,186.42,186.37,2.97]
[1755326341720,2.85,186.41,186.37,2.97]
[1755326341920,2.85,186.43,186.37,2.97]
[1755326342121,2.85,186.45,186.44,5.3593]
[1755326342418,2.85,186.44,186.42,2.97]
[1755326342819,4.47379326,186.48,186.43,5.3594]
[1755326343124,8.88957171,186.47,186.39,2.97]
[1755326343417,2.85,186.45,186.41,8.3299]
[1755326343621,2.85,186.43,186.41,2.97]
[1755326343820,4.41577845,186.42,186.41,2.97]
[1755326344421,7.26577845,186.42,186.41,2.97]
[1755326345222,7.26577845,186.42,186.41,8.3302]
[1755326346917,4.47379326,186.47,186.41,2.89808483]
[1755326347121,7.2701053,186.46,186.42,2.97]
[1755326347319,7.2701053,186.46,186.41,2.89808483]
[1755326347320,4.4201053,186.45,186.38,2.89808483]
[1755326347625,2.85,186.41,186.4,2.97]
[1755326347826,7.26926098,186.41,186.4,2.97]
[1755326348020,7.26926098,186.41,186.4,8.3305]
[1755326350120,7.26926098,186.41,186.4,5.3605]
[1755326350326,7.26926098,186.41,186.4,8.3305]
[1755326350929,4.41926098,186.41,186.4,8.3305]
[1755326351330,2.85,186.43,186.42,5.3599]
[1755326351529,7.26934756,186.43,186.42,5.3599]
[1755326352027,4.41934756,186.43,186.41,5.3601]
[1755326352227,7.26934756,186.42,186.41,5.3601]
[1755326352728,4.41934756,186.42,186.41,8.3301]
[1755326352929,7.26934756,186.42,186.41,8.3301]
[1755326353230,2.85,186.41,186.4,5.3604]
[1755326353524,2.85,186.4,186.39,2.97]
[1755326353726,2.85,186.4,186.39,8.3305]
[1755326355224,4.47379326,186.45,186.42,5.3598]
[1755326355424,4.41917767,186.44,186.42,5.3598]
[1755326355624,4.41917767,186.43,186.42,5.3598]
[1755326355928,7.26917767,186.43,186.42,5.3598]
[1755326360929,4.41917767,186.43,186.42,8.2098]
[1755326361333,4.41917767,186.43,186.42,2.85]
[1755326363325,7.34917767,186.43,186.42,2.85]
[1755326366134,4.41917767,186.43,186.42,2.85]
[1755326366433,4.47379326,186.49,186.42,2.85]
[1755326366735,2.93,186.45,186.42,2.85]
[1755326367725,2.93,186.48,186.42,2.85]
[1755326367926,7.35194261,186.47,186.42,2.85]
[1755326368126,4.42194261,186.46,186.42,2.85]
[1755326368330,4.42194261,186.45,186.42,2.85]
[1755326368526,2.93,186.47,186.42,2.85]
[1755326368731,4.42109316,186.46,186.42,2.85]
[1755326369029,4.42109316,186.45,186.42,2.85]
[1755326369231,2.93,186.46,186.42,2.85]
[1755326370631,7.40379326,186.51,186.42,2.85]
[1755326370838,2.93,186.48,186.42,2.85]
[1755326371034,2.93,186.46,186.42,2.85]
[1755326371230,4.41887941,186.45,186.42,2.85]
[1755326371431,2.93,186.43,186.42,2.85]
[1755326372234,4.47379326,186.49,186.41,5.74808483]
[1755326372235,2.93,186.48,186.41,5.74808483]
[1755326372439,4.47379326,186.49,186.41,2.89808483]
[1755326372440,2.93,186.46,186.41,2.89808483]
[1755326372738,2.93,186.43,186.42,2.85]
[1755326373236,7.35022585,186.43,186.42,2.85]
[1755326373438,2.93,186.43,186.42,2.85]
[1755326373635,4.47379326,186.48,186.42,2.85]
[1755326373836,2.93,186.46,186.38,2.85]
[1755326374134,2.93,186.44,186.38,2.85]
[1755326374441,2.93,186.42,186.39,2.85]
[1755326374641,4.42003831,186.41,186.39,2.85]
[1755326374841,2.93,186.4,186.39,2.85]
[1755326375635,2.93,186.45,186.37,2.85]
[1755326375941,2.93,186.43,186.37,2.85]
[1755326377235,4.42055998,186.42,186.36,237.09808483]
[1755326377436,2.93,186.4,186.38,2.85]
[1755326377838,2.93,186.4,186.34,5.74808483]
[1755326378139,2.93,186.38,186.34,140.78808483]
[1755326378337,2.93,186.37,186.36,2.85]
[1755326378539,2.93,186.42,186.36,2.85]
[1755326378744,2.93,186.4,186.36,2.85]
[1755326379447,2.93,186.39,186.36,2.85]
[1755326379944,7.40379326,186.44,186.37,2.85]
[1755326380151,2.93,186.42,186.37,2.85]
[1755326380440,4.42040913,186.41,186.37,2.85]
[1755326380743,2.93,186.38,186.37,2.85]
[1755326381843,4.47379326,186.44,186.34,236.93808483]
[1755326381844,2.93,186.43,186.35,2.85]
[1755326382041,4.41971679,186.42,186.35,2.85]
[1755326382343,2.93,186.4,186.36,2.85]
[1755326382544,2.93,186.4,186.37,2.85]
[1755326382940,2.93,186.39,186.35,2.85]
[1755326383942,2.93,186.44,186.38,2.85]
[1755326384145,2.93,186.42,186.38,2.85]
[1755326384339,2.93,186.42,186.4,2.85]
[1755326384547,2.93,186.42,186.41,2.85]
[1755326384742,7.34889347,186.42,186.41,2.85]
[1755326385142,2.93,186.41,186.39,134.82]
[1755326385542,7.34932381,186.4,186.39,134.82]
[1755326388952,4.41932381,186.4,186.36,134.62]
[1755326389151,2.87,186.39,186.38,2.91]
[1755326395560,4.47379326,186.45,186.37,2.91]
[1755326395749,2.87,186.43,186.37,2.91]
[1755326395956,2.87,186.41,186.38,2.91]
[1755326396149,4.41798563,186.4,186.38,2.91]
[1755326396359,2.87,186.39,186.38,2.91]
[1755326396757,2.87,186.44,186.38,2.91]
[1755326396956,2.87,186.43,186.4,2.89808483]
[1755326397157,2.89808483,186.52,186.41,134.2]
[1755326397158,4.47379326,186.49,186.41,134.2]
[1755326397354,2.87,186.44,186.42,2.91]
[1755326397554,2.87,186.47,186.43,2.91]
[1755326397756,2.87,186.45,186.42,2.91]
[1755326397956,2.87,186.44,186.41,137.11]
[1755326398351,2.87,186.48,186.42,2.91]
[1755326398557,2.87,186.46,186.42,2.91]
[1755326398862,2.87,186.45,186.42,2.91]
[1755326399558,2.87,186.45,186.44,2.91]
[1755326400361,2.87,186.5,186.44,2.91]
[1755326400564,4.41416527,186.49,186.44,2.91]
[1755326400758,2.87,186.47,186.44,2.91]
[1755326400960,2.87,186.52,186.47,2.91]
[1755326401159,2.87,186.5,186.46,134.08]
[1755326401464,2.87,186.48,186.43,5.80808483]
[1755326401661,4.4132024,186.47,186.44,2.91]
[1755326401859,4.47379326,186.51,186.44,2.91]
[1755326401860,2.87,186.46,186.44,2.91]
[1755326402059,2.87,186.46,186.45,2.91]
[1755326402660,2.87,186.45,186.44,2.91]
[1755326402862,2.87,186.51,186.44,2.91]
[1755326403056,2.87,186.49,186.44,2.91]
[1755326403261,2.87,186.47,186.44,2.91]
[1755326403763,2.87,186.5,186.47,2.91]
[1755326403963,2.87,186.49,186.48,2.91]
[1755326404469,4.47379326,186.55,186.46,2.89808483]
[1755326404470,2.87,186.55,186.47,2.91]
[1755326404767,2.87,186.53,186.47,2.91]
[1755326404968,2.87,186.51,186.47,2.91]
[1755326405566,2.87,186.5,186.47,2.91]
[1755326406765,4.47379326,186.58,186.5,2.092]
[1755326406965,4.40544756,186.57,186.5,2.91]
[1755326407165,4.40544756,186.56,186.5,2.91]
[1755326407367,4.40544756,186.55,186.5,2.91]
[1755326407567,4.40544756,186.54,186.5,2.91]
[1755326407763,4.47379326,186.58,186.48,2.91]
[1755326407968,4.40377122,186.57,186.48,2.91]
[1755326408268,4.40377122,186.56,186.48,2.91]
[1755326408468,4.40377122,186.55,186.48,2.91]
[1755326408665,2.87,186.53,186.48,2.91]
[1755326408864,2.87,186.53,186.49,2.91]
[1755326409362,2.87,186.53,186.46,2.89808483]
[1755326409568,2.87,186.51,186.47,2.91]
[1755326409761,2.87,186.51,186.48,5.3579]
[1755326410169,2.87,186.51,186.48,8.2679]
[1755326412480,2.87,186.51,186.49,5.3578]
[1755326412778,2.87,186.51,186.49,8.2678]
[1755326413771,4.47379326,186.56,186.49,8.2678]
[1755326413978,2.87,186.5,186.49,8.2678]
[1755326414177,2.87,186.55,186.49,2.91]
[1755326414377,4.39932622,186.54,186.49,2.91]
[1755326414681,4.39932622,186.53,186.49,2.91]
[1755326414880,2.87,186.51,186.5,8.2676]
[1755326417080,4.47379326,186.57,186.51,5.3571]
[1755326417381,2.87,186.55,186.52,2.91]
[1755326417874,2.87,186.53,186.52,2.91]
[1755326418382,2.87,186.53,186.52,8.267]
[1755326419792,3.1,186.58,186.52,2.99]
[1755326419999,3.1,186.56,186.52,2.99]
[1755326420295,3.1,186.55,186.52,2.99]
[1755326420886,3.1,186.55,186.54,5.3564]
[1755326421088,3.1,186.55,186.54,8.3464]
[1755326422987,3.1,186.6,186.5,2.99]
[1755326423195,3.1,186.58,186.5,2.99]
[1755326423495,3.1,186.56,186.48,2.99]
[1755326423793,3.1,186.56,186.5,2.99]
[1755326424384,3.1,186.56,186.46,99.0]
[1755326424591,3.1,186.54,186.47,2.99]
[1755326425189,3.1,186.54,186.48,5.358]
[1755326425393,3.1,186.54,186.5,2.99]
[1755326425896,3.1,186.54,186.51,2.99]
[1755326426297,3.1,186.52,186.51,2.99]
[1755326427498,3.1,186.56,186.45,2.99]
[1755326427697,3.1,186.54,186.48,8.3479]
[1755326427899,3.1,186.52,186.48,8.3479]
[1755326429392,3.1,186.52,186.49,2.99]
[1755326429600,3.1,186.51,186.5,2.99]
[1755326430397,3.1,186.51,186.5,8.3476]
[1755326431700,3.1,186.53,186.51,5.3573]
[1755326431897,3.1,186.57,186.5,2.89808483]
[1755326432196,3.1,186.55,186.51,2.99]
[1755326433602,3.1,186.54,186.53,2.99]
[1755326436607,7.49513454,186.54,186.53,2.99]
[1755326438408,4.39513454,186.54,186.51,2.99]
[1755326438609,3.1,186.52,186.48,2.99]
[1755326438808,3.1,186.52,186.49,2.99]
[1755326439815,4.40090465,186.51,186.49,2.99]
[1755326439999,3.1,186.54,186.49,2.99]
[1755326440305,3.1,186.52,186.49,2.99]
[1755326440504,3.1,186.5,186.49,2.99]
[1755326441311,7.50652106,186.5,186.49,8.3479]
[1755326442407,4.40652106,186.5,186.49,5.3579]
[1755326442711,4.40652106,186.5,186.49,8.3479]
[1755326442907,7.50652106,186.5,186.49,2.99]
[1755326443114,3.1,186.49,186.46,135.77]
[1755326443308,4.40966463,186.48,186.45,2.99]
[1755326443614,3.1,186.46,186.45,2.99]
[1755326443813,7.50966463,186.46,186.45,2.99]
[1755326446621,4.40966463,186.46,186.45,2.99]
[1755326447612,4.40966463,186.46,186.45,8.349]
[1755326448117,7.50966463,186.46,186.45,8.349]
[1755326451214,3.1,186.46,186.45,8.349]
[1755326451611,2.92,186.48,186.45,8.349]
[1755326451811,7.32651099,186.47,186.46,3.09]
[1755326452618,2.92,186.49,186.46,3.09]
[1755326452818,4.40617802,186.48,186.46,3.09]
[1755326453020,2.92,186.49,186.47,5.3583]
[1755326453220,4.40617802,186.48,186.47,5.3583]
[1755326453518,7.32617802,186.48,186.47,5.3583]
[1755326453723,7.32617802,186.48,186.47,8.4483]
[1755326454924,7.32617802,186.48,186.47,3.09]
[1755326455322,7.32617802,186.48,186.47,8.4484]
[1755326457025,2.92,186.48,186.47,8.4484]
[1755326457921,2.92,186.5,186.49,3.09]
[1755326458125,4.40339701,186.5,186.49,3.09]
[1755326458924,2.92,186.49,186.43,3.09]
[1755326459127,2.92,186.47,186.43,3.09]
[1755326459626,2.92,186.49,186.43,3.09]
[1755326459827,2.92,186.51,186.43,101.89808483]
[1755326460029,2.92,186.49,186.43,99.0]
[1755326460227,2.92,186.47,186.45,3.09]
[1755326461319,2.92,186.51,186.45,3.09]
[1755326461531,2.92,186.49,186.45,3.09]
[1755326461733,7.32293764,186.48,186.47,5.3584]
[1755326462029,4.47379326,186.53,186.47,5.3584]
[1755326462230,2.92,186.49,186.48,3.09]
[1755326462529,7.32275272,186.49,186.48,3.09]
[1755326466129,7.32275272,186.49,186.46,5.3586]
[1755326466327,2.92,186.47,186.41,2.89808483]
[1755326466930,4.40433764,186.46,186.45,3.09]
[1755326467124,7.32433764,186.46,186.45,3.09]
[1755326468025,4.40433764,186.46,186.42,5.3598]
[1755326468220,2.92,186.45,186.44,3.09]
[1755326469022,2.92,186.49,186.45,3.09]
[1755326469325,2.92,186.47,186.45,3.09]
[1755326469626,2.92,186.5,186.45,3.09]
[1755326469827,4.40508518,186.49,186.45,3.09]
[1755326470029,4.40508518,186.48,186.45,3.09]
[1755326470219,2.92,186.52,186.47,2.89808483]
[1755326470425,4.40474226,186.51,186.48,3.09]
[1755326470625,4.40474226,186.5,186.48,3.09]
[1755326470829,2.92,186.53,186.52,3.09]
[1755326471028,7.32459482,186.53,186.52,3.09]
[1755326471528,2.92,186.52,186.51,3.09]
[1755326471834,7.32459482,186.52,186.51,3.09]
[1755326481536,4.40459482,186.52,186.51,8.4473]
[1755326482440,7.23459482,186.52,186.51,8.4473]
[1755326482732,4.40459482,186.52,186.51,8.4473]
[1755326482938,4.40459482,186.52,186.51,5.3573]
[1755326483136,4.40459482,186.52,186.51,8.2073]
[1755326485241,4.40459482,186.52,186.47,2.89808483]
[1755326485242,4.40459482,186.52,186.5,8.2074]
[1755326485444,7.23459482,186.51,186.5,8.2074]
[1755326485639,7.23459482,186.51,186.5,2.85]
[1755326485839,7.23459482,186.51,186.45,2.85]
[1755326485840,2.83,186.5,186.45,2.85]
[1755326486144,4.40717123,186.49,186.48,5.3582]
[1755326486336,4.40717123,186.49,186.48,8.2082]
[1755326486738,7.23717123,186.49,186.48,2.85]
[1755326489734,2.83,186.48,186.43,2.85]
[1755326489935,4.40717123,186.47,186.43,2.85]
[1755326490140,4.40717123,186.46,186.43,5.3595]
[1755326490339,2.83,186.46,186.44,2.85]
[1755326490541,2.83,186.48,186.44,2.85]
[1755326490741,7.24184693,186.47,186.44,2.85]
[1755326490941,4.41184693,186.46,186.44,2.85]
[1755326491140,2.83,186.47,186.44,2.85]
[1755326491340,4.41177709,186.46,186.44,2.85]
[1755326491542,2.83,186.47,186.44,2.85]
[1755326491745,4.41183116,186.46,186.45,5.359]
[1755326491939,4.41183116,186.46,186.45,8.209]
[1755326493645,7.24183116,186.46,186.45,8.209]
[1755326494243,4.41183116,186.46,186.45,8.209]
[1755326494449,4.47379326,186.53,186.48,2.85]
[1755326494649,7.24158208,186.52,186.48,2.85]
[1755326494842,4.41158208,186.51,186.48,2.85]
[1755326495038,2.83,186.53,186.51,2.85]
[1755326495243,4.41054787,186.52,186.45,2.89808483]
[1755326495439,2.83,186.54,186.48,2.89808483]
[1755326495645,4.41058607,186.53,186.49,2.85]
[1755326495841,7.30379326,186.58,186.51,5.74808483]
[1755326496148,7.30379326,186.6,186.59,2.85]
[1755326496450,2.83,186.59,186.56,2.85]
[1755326496648,2.83,186.59,186.54,2.85]
[1755326496949,2.83,186.59,186.55,2.85]
[1755326497146,2.83,186.59,186.51,2.89808483]
[1755326497352,2.83,186.59,186.56,2.85]
[1755326498756,2.83,186.59,186.57,2.85]
[1755326499053,2.83,186.6,186.57,2.85]
[1755326499847,4.47379326,186.62,186.57,2.85]
[1755326500046,2.83,186.61,186.57,2.85]
[1755326500651,2.83,186.61,186.59,5.355]
[1755326500856,2.83,186.61,186.6,2.85]
[1755326503058,2.83,186.61,186.58,2.85]
[1755326504260,2.83,186.61,186.56,2.85]
[1755326504459,2.83,186.6,186.54,2.85]
[1755326504861,2.83,186.6,186.49,135.43808483]
[1755326504862,2.83,186.59,186.49,135.43808483]
[1755326505061,2.83,186.59,186.52,2.85]
[1755326505255,2.83,186.59,186.53,2.85]
[1755326507157,2.83,186.59,186.53,8.2067]
[1755326507461,2.83,186.59,186.55,2.85]
[1755326507861,4.37775407,186.58,186.55,2.85]
[1755326508161,2.83,186.56,186.55,2.85]
[1755326508360,7.20775407,186.56,186.55,2.85]
[1755326508660,3.14,186.55,186.54,3.05]
[1755326509461,7.51797407,186.55,186.54,3.05]
[1755326509661,3.14,186.57,186.54,3.05]
[1755326509866,7.51764914,186.56,186.54,3.05]
[1755326510061,4.47379326,186.6,186.5,3.05]
[1755326510260,3.14,186.58,186.5,3.05]
[1755326510456,7.51765966,186.57,186.53,5.3567]
[1755326510660,7.51765966,186.56,186.53,5.3567]
[1755326510861,3.14,186.56,186.55,3.05]
[1755326511162,7.51765876,186.56,186.55,3.05]
[1755326511760,7.51765876,186.56,186.52,5.3569]
[1755326511964,3.14,186.56,186.54,3.05]
[1755326512167,3.14,186.55,186.54,3.05]
[1755326512968,3.14,186.57,186.54,3.05]
[1755326513166,7.51839533,186.56,186.55,3.05]
[1755326513367,4.37839533,186.56,186.55,3.05]
[1755326513562,7.51839533,186.56,186.55,3.05]
[1755326514367,4.37839533,186.56,186.55,3.05]
[1755326514856,3.14,186.6,186.55,3.05]
[1755326515056,4.37900157,186.59,186.55,3.05]
[1755326515256,3.14,186.6,186.55,3.05]
[1755326515464,4.37869476,186.59,186.55,3.05]
[1755326515668,3.14,186.6,186.55,3.05]
[1755326515856,4.37869476,186.59,186.55,3.05]
[1755326516061,3.14,186.6,186.55,3.05]
[1755326516369,3.14,186.6,186.58,3.05]
[1755326516667,4.47379326,186.64,186.58,3.05]
[1755326516866,3.14,186.61,186.58,3.05]
[1755326517168,3.14,186.61,186.59,5.355]
[1755326517463,3.14,186.61,186.6,3.05]
[1755326518169,3.14,186.65,186.57,3.05]
[1755326518369,7.45592431,186.64,186.57,3.05]
[1755326518569,3.14,186.64,186.57,3.05]
[1755326518869,3.14,186.67,186.63,3.05]
[1755326519069,4.31571909,186.66,186.63,3.05]
[1755326519270,7.45571909,186.65,186.64,3.05]
[1755326519871,7.45571909,186.65,186.62,8.4041]
[1755326520061,7.45571909,186.64,186.63,3.05]